Cogmind - Beta 15 @@@ ROGUE MODE // 2025.07.14 @ 13:27:35 Player: vilepis Result: Destroyed by 6Z-FP8(j) with Overtuned Pulse Rifle Performance ------------- Evolutions (0) 0 Regions Visited (3) 600 Robots Destroyed (3) 15 Value Destroyed (139) 139 Prototype IDs (12) 240 Alien Tech Used (0) 0 Bonus (786) 786 TOTAL SCORE: 1780 Bonus ------- Registered with UFD 300 Met Optimus in HQ 500 Friendly Fire -14 Cogmind --------- Core Integrity 0/250 Matter 300/300 Energy 99/100 System Corruption 2% Temperature Cool (24) Movement Core (50) Location -8/Scraptown Parts ------- > --- POWER (1) -------- (None) > --- PROPULSION (2) --- (None) > --- UTILITY (2) ------ Tech Extrapolator > --- WEAPON (2) ------- (None) > --- INVENTORY (5) ---- 0b10 Decoder Chip [Scout] A0-MCA's Component Scanner Personal Teleporter v0.10 (0/15) Overtuned Pulse Rifle Assault Rifle Peak State ------------ > --- POWER ------------ Subdweller Power Source > --- PROPULSION ------- Overtuned Huge Scrapsphere > --- UTILITY ---------- Improved Heat Sink Core Shielding > --- WEAPON ----------- Assault Cannon Slug Cannon > --- INVENTORY -------- Overtuned Scrapsphere 0b10 Decoder Chip [Scout] A0-MCA's Component Scanner Overtuned Pulse Rifle Assault Rifle [Rating: 27] Favorites ----------- Power Subdweller Power Source Engine Subdweller Power Source Propulsion Wheel Wheel Wheel Hover Unit Airjet Utility Improved Heat Sink Device Improved Heat Sink Storage Small Storage Unit Processor Tech Extrapolator Protection Core Shielding Weapon Slug Cannon Energy Gun Medium Laser Ballistic Gun Assault Rifle Ballistic Cannon Slug Cannon Special Weapon Flamer Build | -11 -10 -10 -8 ------- Run | Yrd Mat Sub Scr Slots Evolved . | . . . . Power . | . . . . Propulsion . | . . . . Utility . | . . . . Weapon . | . . . . Parts Attached 25 | 6 . 12 7 Power 3 | 1 . 2 . Engine 3 | 1 . 2 . Core . | . . . . Reactor . | . . . . Propulsion 8 | 2 . 2 4 Treads . | . . . . Leg . | . . . . Wheel 6 | 2 . 2 2 Hover 2 | . . . 2 Flight . | . . . . Utility 5 | 1 . 2 2 Device 2 | . . 2 . Storage 1 | 1 . . . Processor 1 | . . . 1 Hackware . | . . . . Protection 1 | . . . 1 Artifact . | . . . . Weapon 9 | 2 . 6 1 Energy Gun 2 | 1 . 1 . Energy Cannon . | . . . . Ballistic Gun 3 | 1 . 2 . Ballistic Cannon 3 | . . 2 1 Launcher . | . . . . Special Weapon 1 | . . 1 . Impact Weapon . | . . . . Slashing Weapon . | . . . . Piercing Weapon . | . . . . Special Melee Weapon . | . . . . Unidentified Prototypes . | . . . . Parts Lost 8 | . . 1 7 Power 1 | . . . 1 Propulsion 2 | . . . 2 Utility 2 | . . . 2 Weapon 3 | . . 1 2 Highest Loss Streak 5 | . . 1 5 To Critical Strikes . | . . . . Average Backups 2 | . . 2 3 Power . | . . . . Propulsion . | . . . . Utility . | . . . . Weapon 1 | . . 1 2 Tool/Special . | . . . . Unused Backups 4 | . . . 4 Power . | . . . . Propulsion . | . . . . Utility 2 | . . . 2 Weapon 1 | . . . 1 Tool/Special 1 | . . . 1 Average Slot Usage (%) 95 | . 85 94 96 Engine 13 | . 14 14 12 Wheel 25 | . 28 28 24 Hover 1 | . . . 2 Device 15 | . . 20 12 Storage 1 | . 14 2 . Protection 7 | . . . 13 Energy Gun 1 | . 14 2 . Ballistic Gun 5 | . 14 13 . Ballistic Cannon 20 | . . 10 28 Peak Build Rating 27 | 6 6 16 27 Average Rating 15 | 4 6 12 17 On Entrance 7 | . 6 6 16 Naked Turns . | . . . . Heaviest Build 19 | 14 14 18 19 Greatest Support 30 | 20 20 30 30 Greatest Overweight (x) 6 | . . 1 6 Average Overweight (x) . | . . . . Largest Inventory Capacity 8 | 8 8 8 5 Average Capacity 5 | 6 8 5 5 Most Carried 5 | . . 5 5 Average Carried 4 | . . 4 4 Final Capacity 8 | 8 8 5 5 Final Carried 5 | . . 5 5 Class Distribution -------------------- 77% | Mutant 22% | Scavenger-Mutant Dominant Class ---------------- Mutant | -10/Materials Scavenger-Mutant | -10/Subcaves Mutant | -8/Scraptown Resources | -11 -10 -10 -8 ----------- Run | Yrd Mat Sub Scr Matter Collected 669 | 224 . 244 201 Remotely . | . . . . Salvage Created 170 | . . 50 120 Parts 11 | . . 4 7 Haulers Intercepted . | . . . . Recyclers Shooed . | . . . . Parts Field Recycled . | . . . . Retrieved Matter . | . . . . Parts Self-Destructed 9 | . . 9 . Prevented . | . . . . Kills | -11 -10 -10 -8 ------- Run | Yrd Mat Sub Scr Combat Hostiles Destroyed 3 | . . 1 2 Guns 1 | . . 1 . Cannons 2 | . . . 2 Classes Destroyed 3 | . . 1 2 Subdweller 1 | . . 1 . Scrapper 1 | . . . 1 Thug 1 | . . . 1 Best Kill Streak 1 | . . 1 1 Combat Bots Only 1 | . . 1 1 Max Kills in Single Turn 1 | . . 1 1 Gunslinging . | . . . . Exploded . | . . . . Melee . | . . . . Uniques/NPCs Destroyed . | . . . . Combat | -11 -10 -10 -8 -------- Run | Yrd Mat Sub Scr Hostile Shots Fired 84 | . . 25 59 Missed 28 | . . 5 23 Hits 56 | . . 20 36 Melee 1 | . . . 1 Projectile 55 | . . 20 35 Critical Strikes 2 | . . . 2 Actively Blocked 1 | . . . 1 Damage Taken 1067 | . . 404 663 Core 267 | . . 25 242 Absorbed by Shields . | . . . . Redirected to Shielding 46 | . . . 46 Core Remaining (%) 100 | 100 . . . Volleys Fired 27 | . . 16 11 Largest 2 | . . 2 2 Hottest 130 | . . 130 77 Shots Fired 52 | . . 30 22 Gun 22 | . . 22 . Cannon 28 | . . 6 22 Launcher . | . . . . Special 2 | . . 2 . Kinetic 43 | . . 21 22 Thermal 9 | . . 9 . Explosive . | . . . . Electromagnetic . | . . . . Robot Hit Streak 8 | . . 8 2 Robot Miss Streak 4 | . . 2 4 Penetration Max . | . . . . Secondary Targets . | . . . . Shots Hit Robots 22 | . . 14 8 Core Hits 6 | . . 3 3 Critical Kills . | . . . . Critical Parts Destroyed . | . . . . Critical Strikes . | . . . . Melee Attacks . | . . . . Impact . | . . . . Slashing . | . . . . Piercing . | . . . . Sneak Attacks . | . . . . Combat Hostiles . | . . . . Follow-up Attacks . | . . . . Damage Inflicted 388 | . . 205 183 Guns 205 | . . 205 . Cannons 183 | . . . 183 Explosions . | . . . . Melee . | . . . . Ramming . | . . . . Kinetic 327 | . . 144 183 Thermal 61 | . . 61 . Explosive . | . . . . Electromagnetic . | . . . . Impact . | . . . . Slashing . | . . . . Piercing . | . . . . Highest Corruption 2 | . . . 2 Average Corruption 2 | . . . 2 Corruption Purged . | . . . . Corruption Blocked . | . . . . Overload Shots . | . . . . Overflow Damage . | . . . . Projectiles . | . . . . Explosions . | . . . . Melee . | . . . . Knockbacks 2 | . . . 2 Impact . | . . . . Kinetic 2 | . . . 2 Secondary . | . . . . Self-Inflicted Damage . | . . . . Shots . | . . . . Rammed . | . . . . Targets Rammed . | . . . . Kicked . | . . . . Crushed . | . . . . Highest Temperature 83 | . . 18 83 Average Temperature 21 | . . 7 22 Received Heat Transfer 418 | . . 99 319 Siege Activations . | . . . . Martial Activations . | . . . . Shielding Activations . | . . . . Robots Disrupted . | . . . . Combat Hostiles . | . . . . Robots Corrupted . | . . . . Combat Hostiles . | . . . . Parts Fried . | . . . . Impact Corruptions . | . . . . Robots Melted . | . . . . Combat Hostiles . | . . . . Parts Melted . | . . . . Heat Transferred 75 | . . 75 . Parts Sabotaged . | . . . . Parts Stolen . | . . . . Parts Stripped . | . . . . Power Chain Reactions . | . . . . Alert | -11 -10 -10 -8 ------- Run | Yrd Mat Sub Scr Maximum Alert Level . | . . . . Low Security (%) 100 | 100 100 . . Level 1 . | . . . . Level 2 . | . . . . Level 3 . | . . . . Level 4 . | . . . . Level 5 . | . . . . High Security . | . . . . Max Security . | . . . . Peak Influence . | . . . . Initial . | . . . . Average . | . . . . Influence Increases . | . . . . Influence Decreases . | . . . . Squads Dispatched . | . . . . Investigation . | . . . . Extermination . | . . . . Reinforcement . | . . . . Assault . | . . . . Garrison . | . . . . Intercept . | . . . . Searches Triggered . | . . . . Construction Impeded . | . . . . Haulers Reinforced . | . . . . Active Scanning Responses . | . . . . Cargo Convoy Interrupts . | . . . . Stealth | -11 -10 -10 -8 --------- Run | Yrd Mat Sub Scr Distress Signals . | . . . . Communications Jammed . | . . . . Distress Signals . | . . . . Times Spotted 42 | . . 9 33 Peak Tracking Total 16 | . . 4 16 Tactical Retreats . | . . . . Traps | -11 -10 -10 -8 ------- Run | Yrd Mat Sub Scr Traps Triggered . | . . . . Indirectly . | . . . . Trap Hack Attempts . | . . . . Triggered . | . . . . Disarmed . | . . . . Reprogrammed . | . . . . Reused . | . . . . Traps Extracted . | . . . . Installed . | . . . . Triggered . | . . . . Machines | -11 -10 -10 -8 ---------- Run | Yrd Mat Sub Scr Machines Disabled 1 | . . . 1 Max in Single Turn 1 | . . . 1 Machines Repaired . | . . . . Machines Dismantled . | . . . . Machines Sabotaged . | . . . . Overloaded Fab Kills . | . . . . Hacking | -11 -10 -10 -8 --------- Run | Yrd Mat Sub Scr Machines Accessed 7 | . . . 7 Terminals . | . . . . Fabricators . | . . . . Repair Stations . | . . . . Recycling Units . | . . . . Scanalyzers . | . . . . Garrison Access . | . . . . Total Hacks 43 | . . . 43 Successful 43 | . . . 43 Failed . | . . . . Catastrophic . | . . . . Database Lockouts . | . . . . Manual 1 | . . . 1 Terminals . | . . . . Fabricators . | . . . . Repair Stations . | . . . . Recycling Units . | . . . . Scanalyzers . | . . . . Garrison Access . | . . . . Terminal Hacks 43 | . . . 43 Record 42 | . . . 42 Proto ID Catalog 1 | . . . 1 Fabricator Hacks . | . . . . Repair Station Hacks . | . . . . Recycling Unit Hacks . | . . . . Scanalyzer . | . . . . Garrison Access Hacks . | . . . . Unauthorized Hacks . | . . . . Terminals . | . . . . Fabricators . | . . . . Repair Stations . | . . . . Recycling Units . | . . . . Scanalyzers . | . . . . Garrison Access . | . . . . Data Cores Recovered . | . . . . Used . | . . . . Hacking Detections . | . . . . Full Trace Events . | . . . . Feedback Events . | . . . . Feedback Blocked . | . . . . Robot Schematics Acquired . | . . . . Robots Built . | . . . . Authchips . | . . . . Time . | . . . . Total Robot Build Rating . | . . . . Part Schematics Acquired 1 | . . . 1 Parts Built . | . . . . Authchips . | . . . . Time . | . . . . Total Part Build Rating . | . . . . Parts Repaired . | . . . . Time . | . . . . Parts Recycled . | . . . . Recycled Matter . | . . . . Retrieved Matter . | . . . . Retrieved Components . | . . . . Parts Scanalyzed . | . . . . Part Schematics Acquired . | . . . . Parts Damaged . | . . . . Bothacking | -11 -10 -10 -8 ------------ Run | Yrd Mat Sub Scr Used RIF Installer . | . . . . Robots Hacked . | . . . . Non-combat . | . . . . Combat . | . . . . Robot Hacks Applied . | . . . . Relay Couplers Released . | . . . . Fabnet Peak Effective % . | . . . . Robots Rewired . | . . . . Allies Hacked . | . . . . Hacks Repelled . | . . . . Allies | -11 -10 -10 -8 -------- Run | Yrd Mat Sub Scr Total Allies . | . . . . Largest Group . | . . . . Highest-Rated Group . | . . . . Highest-Rated Ally . | . . . . Total Orders . | . . . . Ally Attacks . | . . . . Total Damage . | . . . . Kills . | . . . . Allies Corrupted . | . . . . Allies Melted 1 | . . . 1 Intel | -11 -10 -10 -8 ------- Run | Yrd Mat Sub Scr Active Infowar (turns) 702 | . . 702 . Optics 702 | . . 702 . Robot Analysis Total . | . . . . Derelict Logs Recovered . | . . . . Drone Launches . | . . . . Drone Recoveries . | . . . . Exploration | -11 -10 -10 -8 ------------- Run | Yrd Mat Sub Scr Turns Passed 2317 | 47 54 855 1361 Spaces Moved 2309 | 48 66 765 1430 Core 10 | 1 . . 9 Treads . | . . . . Legs . | . . . . Wheels 2128 | 47 66 765 1250 Hover 171 | . . . 171 Flight . | . . . . Fastest Speed 50 | 50 80 80 50 Average Speed 89 | 79 80 87 90 Slowest Speed 350 | 80 80 95 350 Overloaded Moves . | . . . . Propulsion Burnouts . | . . . . Robots Hopped . | . . . . Potential Cave-ins . | . . . . Cave-ins Triggered . | . . . . Exploration Rate (%) 39 | 3 22 56 78 Regions Visited 3 Branch Regions 2 Pre-discovered Areas 1 | . . 1 . Known Exits Taken . | . . . . Unknown Exits Taken 3 | 1 1 1 . Scrap Searched 4 | . . . 4 Spaces Dug . | . . . . Terrain Destroyed 3 | . . . 3 Melee . | . . . . Projectile 3 | . . . 3 AOE . | . . . . Terrain Rammed . | . . . . Walls Destroyed . | . . . . Machines Disabled . | . . . . Actions | -11 -10 -10 -8 --------- Run | Yrd Mat Sub Scr Total 2506 | 53 66 917 1470 Wait 123 | . 1 117 5 Move 2306 | 47 65 764 1430 Hop . | . . . . Pick Up 8 | . . 3 5 Fast Attach 15 | 6 . 3 6 Attach 1 | . . . 1 Detach . | . . . . Swap 13 | . . 11 2 Drop 13 | . . 3 10 Fire 27 | . . 16 11 Melee . | . . . . Ram . | . . . . Kick . | . . . . Crush . | . . . . Escape Stasis . | . . . . Rewire . | . . . . Trap . | . . . . Miscellaneous . | . . . . Route ------- -11/Scrapyard -10/Materials -10/Subcaves (discovered 3 exits: [*Mat x2] / *Scr) -8/Scraptown (discovered 1 exit: [*Fac]) History --------- Turn | Location | Event 5 | -11/Scrapyard | Discovered new exit (range 16) 48 | -11/Scrapyard | Entered Materials 49 | -10/Materials | Met a group of wandering Federalists 92 | -10/Materials | Discovered new exit (range 8) 102 | -10/Materials | Entered Subcaves 102 | -10/Subcaves | Accompanied by 4 allies 103 | -10/Subcaves | Continued accompanying wandering Federalists (5) 183 | -10/Subcaves | Shifting Twisted Machinery released Sub. Power Source 209 | -10/Subcaves | Shifting Twisted Machinery released Flamer 238 | -10/Subcaves | Discovered new exit (range 11) 338 | -10/Subcaves | Wandering Federalist uncovered a shortcut to Scraptown 369 | -10/Subcaves | A swath of the cavern ceiling suddenly collapsed 490 | -10/Subcaves | A swath of the cavern ceiling suddenly collapsed 517 | -10/Subcaves | Discovered new exit (range 11) 545 | -10/Subcaves | Build established: Scavenger-Mutant 545 | -10/Subcaves | Learned location of Zion (-6) 545 | -10/Subcaves | Met a Zionite searching for "candidates" 810 | -10/Subcaves | Shifting Twisted Machinery released Sub. Power Source 824 | -10/Subcaves | Shifting Twisted Machinery released Sub. Machine Gun 881 | -10/Subcaves | Lost 3 allies 957 | -10/Subcaves | Entered Scraptown 1259 | -8/Scraptown | Build established: Mutant 1329 | -8/Scraptown | Visited Awakened 1560 | -8/Scraptown | Discovered new exit (range 13) 1682 | -8/Scraptown | Visited Symbiants 1711 | -8/Scraptown | Visited Red Mages 1751 | -8/Scraptown | Visited UFD Registry 1751 | -8/Scraptown | Registered with UFD as "Hellchassis" 1763 | -8/Scraptown | Visited IN-MT5's Study 1824 | -8/Scraptown | Visited Scrapoid Research Area 1879 | -8/Scraptown | Visited LU-1G1's Boring Crew 1898 | -8/Scraptown | Visited A0-MCA Data Center 1903 | -8/Scraptown | Given a B rating by A0-MCA 1906 | -8/Scraptown | Found A0-MCA's Component Scanner 1942 | -8/Scraptown | Visited Infowarlord's Domain 1998 | -8/Scraptown | Met Optimus 1998 | -8/Scraptown | Accepted into 0bPrime 2081 | -8/Scraptown | Visited Modified Component R&D 2107 | -8/Scraptown | Civil war broke out across Scraptown 2223 | -8/Scraptown | Lost 7 allies 2223 | -8/Scraptown | Visited Science Guys 2233 | -8/Scraptown | Found Personal Teleporter v0.10 2255 | -8/Scraptown | Visited Abandonware Association 2269 | -8/Scraptown | Optimus destroyed in the chaos of civil war 2315 | -8/Scraptown | Core integrity fell below 50% 2318 | -8/Scraptown | Core integrity fell below 20% 2318 | -8/Scraptown | Destroyed by 6Z-FP8(j) with Overtuned Pulse Rifle Last Messages --------------- 02304_ EK-WR0(E) cannibalizes Lgt. Treads to repair Ovr. Treads. 02304_ U8-I3V(j) suffers critical hit (Destroy). 02309_ U8-I3V(j) heat short circuits Ovr. Pulse Rifle. 02309_ Acquired 50 matter. 02309_ EK-WR0(E) suffers critical hit (Burn). 02309_ EK-WR0(E) destroyed. 02310_ 2L-M8I(j) suffers critical hit (Burn). 02311_ 2L-M8I(j) switches sides: "Sorry, the bolts are shinier on the other side!" 02312_ Assault Cannon destroyed. 02313_ Bolt penetrates Reinforced Barrier. 02315_ Bolt penetrates QB-RSQ(j). 02315_ QB-RSQ(j) destroyed. 02315_ Slug Cannon destroyed. 02316_ Bolt penetrates Machine. 02316_ Penetrated by Bolt. 02316_ Airjet destroyed. 02318_ Core Shielding destroyed. Map ----- +----------------------------------------------------+ | ""#?# " ""#????????# "#??" ## | | ""#?# " """#????????# "###" ## "=!"" | | ""#?# " ""#????????# """"" ##&"!%"" | | ""#?# " "#????????# ##" [= | | "#?#""" "#????????# ## | | #?# #????????##### ########### ## | | ################## ####???????##### ########### ## | | #???????#"""" """"""""""%["" | | #???????#" ===%! | | #???????#" /!!=% | | #???????#" =! | | #???????#" | | ######## #### #????####" | | "#?# #????"""" """"""""" " | | ""#?# #????"""" %! """""""""""" | | "" ""#?# #????"""" ! ""###### ### | | " """#?# #???#"""" [ "# | | "" " " ""#?# #???#""""!!!%= ""# | | """ ""#?# ###?#""""!%!= ""# "" "" | | """ "#?; ""#"#""""*%= ""# "" "" | | " "#?; """"#""" %!%/% "# " " | | """""" ""#?# ""#####"#!%*%=="" " | | +######"""### ###???###=[=!%* " "" | | ??????#"""; ; ######### %*![!""# " " | | ??????#"""##; !h= %![[ !!""# "" "" | | ??????#####?# !=!j @ !==% =% "# "" "" | | ????????????# !%! xj[%*[% !=""# | | ????????????# =%[[ jj! =!%[ ""# | | ########???## TT !!!!%[ = !==""###### ### | | TT !*== *%[% """""""""""" | | !% %!%!! [!*""""""""""""" | | ! !=% ! * g | | !%! !![ [! | | [![ b=[*!*= %[!* | | %!=*= ! #""""# =!p=*% | | !%!j! #????# !!%!=[ | | [=! #????# " "%!"""""""""" | | #######? #######;#; j####????##;;#"#[########### | | ??????????????????# #?????????## #???""" | | ??????????????????# #??????????# "#? | | ?????????????????# #??????????# " "# | | ????????????????# #??????????#""" ""# " " | | ????????????????# ???????????#""" #?" | | "???????????????# ???????????#""" " #?" " | | ?"???????????????? ???????????# " """#? " | | " ???????????????????????????????# """#"""?" | | ?????????????????????????????????# """#?????# | | ?????????????????????????????????# " " " #?????? | | ?????????????????????????????????#""""" #?????? | | ?????????????????????????????????###########?????? | +----------------------------------------------------+ Best States ------------- Heat Dissipation 39 Energy Generation 15 Energy Capacity 250 Matter Stores 300 Matter Capacity 300 Sight Range 21 Terrain Scan Density 10 Core Shielding 20 Evasion (%) 53 Item Schematics ----------------- Mak. Leg | -8/Scraptown | Extrapolated Robot Schematics ------------------ None Fabricated ------------ Nothing Repaired ---------- Nothing Alien Tech Used ----------------- None Achievements -------------- None Challenges ------------ None Game ------ Seed ScrapStasisScythe Manual? 0 Play Time 00:35:53 Cumulative 19.4 hours Start 2025.07.14 @ 12:53:51 End 2025.07.14 @ 13:27:35 Sessions 1 Manual Loads 0 Difficulty Rogue Special Mode None Game No. 38 Rogue 38 Adventurer 0 Explorer 0 Win Type - Total 0 Types 0/0/0/0/0/0/0/0/0/0 Lore% 16 Gallery% 20 Achievement% 20 Wizard Run 0 Options --------- Layout 2 ASCII 0 Keyboard 0 Movement Mouse Keybinds 1 Fullscreen 2 Font 32/Smallcaps Map View 50x44 Zoom Use 0% Tactical HUD 1 Map Filters NONE Filters NONE Steam 1 RUN: 96468f59-3c6c-4025-b5f3-e10b24859072